fUSD/lending_fUSD_20250618
["ID","MTS","AMOUNT","RATE_DAILY","PERIOD"]
[366462880,1750267842878,-151.0,0.00017728,2]
[366462882,1750267842889,-151.0,0.00017728,2]
[366462884,1750267842898,-151.0,0.00017728,2]
[366462886,1750267842908,-151.0,0.00017728,2]
[366462888,1750267842918,-257.021327,0.00017728,2]
[366462890,1750267842929,-299.879646,0.00017728,2]
[366462892,1750267842938,-299.879646,0.00017728,2]
[366462894,1750267842948,-151.0,0.00017728,2]
[366462896,1750267842957,-151.0,0.00017728,2]
[366462898,1750267842967,-151.0,0.00017728,2]
[366462901,1750267842978,-286.310999,0.00017728,2]
[366462903,1750267842987,-286.310999,0.00017728,2]
[366462906,1750267842997,-162.565468,0.00017728,2]
[366462908,1750267843008,-162.565468,0.00017728,2]
[366462910,1750267843018,-151.0,0.00017728,2]
[366462913,1750267843027,-151.0,0.00017728,2]
[366462916,1750267843037,-151.0,0.00017728,2]
[366462919,1750267843046,-164.005556,0.00017728,2]
[366462921,1750267843055,-164.005556,0.00017728,2]
[366462924,1750267843064,-151.0,0.00017728,2]
[366462927,1750267843074,-151.0,0.00017728,2]
[366462930,1750267843083,-183.36,0.00017866,2]
[366462933,1750267843092,-156.25096072,0.00017893,2]
[366462936,1750267843102,-327.749327,0.000179,2]
[366462939,1750267843112,-151.0,0.000179,2]
[366462943,1750267843123,-151.0,0.000179,2]
[366462946,1750267843132,-151.0,0.000179,2]
[366462949,1750267843141,-151.0,0.000179,2]
[366462952,1750267843151,-151.0,0.000179,2]
[366462956,1750267843160,-151.0,0.000179,2]
[366462959,1750267843168,-151.0,0.000179,2]
[366462961,1750267843178,-295.522694,0.000179,2]
[366462963,1750267843186,-151.0,0.000179,2]
[366462965,1750267843195,-1482.198275,0.000179,2]
[366462967,1750267843204,-1482.198275,0.000179,2]
[366462969,1750267843213,-151.0,0.000179,2]
[366462972,1750267843222,-151.0,0.000179,2]
[366462974,1750267843232,-267.226776,0.000179,2]
[366462976,1750267843242,-151.0,0.000179,2]
[366462978,1750267843251,-151.0,0.000179,2]
[366462980,1750267843261,-151.0,0.000179,2]
[366462982,1750267843271,-184.108387,0.000179,2]
[366462984,1750267843281,-184.108387,0.000179,2]
[366462986,1750267843290,-2989.26202407,0.00017908,2]
[366462988,1750267843300,-150.0,0.00017915,2]
[366462990,1750267843310,-150.0,0.00017938,2]
[366462992,1750267843319,-1500.0,0.00017952,2]
[366462994,1750267843329,-1500.0,0.00017956,2]
[366462996,1750267843338,-901.56032105,0.0001797,2]
[366462998,1750267843347,-150.0,0.00017981,2]
[366463000,1750267843357,-1500.0,0.00017987,2]
[366463002,1750267843368,-151.0,0.00017993,2]
[366463004,1750267843378,-151.0,0.00017993,2]
[366463006,1750267843388,-151.0,0.00017993,2]
[366463008,1750267843398,-300.0,0.00017993,2]
[366463010,1750267843408,-300.0,0.00017993,2]
[366463012,1750267843418,-300.0,0.00017993,2]
[366463014,1750267843427,-300.0,0.00017993,2]
[366463017,1750267843437,-1957.856,0.00017993,2]
[366463019,1750267843447,-300.0,0.00017993,2]
[366463021,1750267843456,-300.0,0.00017993,2]
[366463023,1750267843466,-300.0,0.00017993,2]
[366463025,1750267843475,-171.08900477,0.00017993,2]
[366463027,1750267843485,-500.0,0.00017993,2]
[366463029,1750267843494,-500.0,0.00017993,2]
[366463031,1750267843504,-500.0,0.00017993,2]
[366463033,1750267843514,-500.0,0.00017993,2]
[366463035,1750267843524,-500.0,0.00017993,2]
[366463037,1750267843533,-500.0,0.00017993,2]
[366463039,1750267843543,-500.0,0.00017993,2]
[366463041,1750267843552,-500.0,0.00017993,2]
[366463043,1750267843562,-500.0,0.00017993,2]
[366463045,1750267843572,-500.0,0.00017993,2]
[366463047,1750267843581,-500.0,0.00017993,2]
[366463049,1750267843591,-500.0,0.00017993,2]
[366463051,1750267843601,-500.0,0.00017993,2]
[366463053,1750267843613,-500.0,0.00017993,2]
[366463055,1750267843623,-668.65185757,0.00017993,2]
[366463057,1750267843633,-500.0,0.00017993,2]
[366463060,1750267843642,-207.4,0.00017993,2]
[366463062,1750267843652,-48105.48478733,0.00018,2]
[366463064,1750267843662,-100010.47903487,0.00018,7]
[366463066,1750267843671,-327.749318,0.00018,2]
[366463068,1750267843681,-151.0,0.00018,2]
[366463070,1750267843691,-219.232162,0.00018,2]
[366463072,1750267843700,-151.0,0.00018,2]
[366463074,1750267843710,-151.0,0.00018,2]
[366463076,1750267843719,-151.0,0.00018,2]
[366463078,1750267843729,-151.0,0.00018,2]
[366463081,1750267843739,-151.0,0.00018,2]
[366463083,1750267843748,-151.0,0.00018,2]
[366463084,1750267843757,-151.0,0.00018,2]
[366463085,1750267843767,-151.0,0.00018,2]
[366463086,1750267843776,-151.0,0.00018,2]
[366463087,1750267843786,-151.0,0.00018,2]
[366463088,1750267843795,-151.0,0.00018,2]
[366463089,1750267843805,-151.0,0.00018,2]
[366463090,1750267843815,-151.0,0.00018,2]
[366463091,1750267843824,-151.0,0.00018,2]
[366463092,1750267843834,-151.0,0.00018,2]
[366463093,1750267843847,-151.0,0.00018,2]
[366463094,1750267843857,-151.0,0.00018,2]
[366463096,1750267843868,-151.0,0.00018,2]
[366463098,1750267843878,-151.0,0.00018,2]
[366463100,1750267843889,-151.0,0.00018,2]
[366463102,1750267843898,-151.0,0.00018,2]
[366463104,1750267843907,-151.0,0.00018,2]
[366463106,1750267843916,-151.0,0.00018,2]
[366463108,1750267843925,-154.386857,0.00018,2]
[366463110,1750267843935,-296.71569,0.00018,2]
[366463112,1750267843945,-154.386857,0.00018,2]
[366463138,1750267844148,-252.118929,0.00018,2]
[366463141,1750267844186,-151.0,0.00018,2]
[366463143,1750267844196,-151.0,0.00018,2]
[366463145,1750267844205,-201.932627,0.00018,2]
[366463147,1750267844215,-151.0,0.00018,2]
[366463149,1750267844224,-151.0,0.00018,2]
[366463151,1750267844234,-257.021327,0.00018,2]
[366463153,1750267844243,-299.879646,0.00018,2]
[366463155,1750267844253,-151.0,0.00018,2]
[366463157,1750267844262,-299.879646,0.00018,2]
[366463159,1750267844273,-151.0,0.00018,2]
[366463161,1750267844282,-151.0,0.00018,2]
[366463163,1750267844292,-151.0,0.00018,2]
[366463165,1750267844301,-151.0,0.00018,2]
[366463167,1750267844310,-151.0,0.00018,2]
[366463169,1750267844319,-286.310999,0.00018,2]
[366463171,1750267844329,-286.310999,0.00018,2]
[366463173,1750267844338,-162.565468,0.00018,2]
[366463175,1750267844348,-162.565468,0.00018,2]
[366463177,1750267844357,-151.0,0.00018,2]
[366463179,1750267844367,-151.0,0.00018,2]
[366463181,1750267844377,-833.92080167,0.00018,7]
[366463183,1750267844387,-1482.198275,0.00018,2]
[366463185,1750267844396,-1482.198275,0.00018,2]
[366463187,1750267844405,-247.09617,0.00018,2]
[366463189,1750267844415,-151.0,0.00018,2]
[366463192,1750267844425,-151.0,0.00018,2]
[366463194,1750267844435,-151.0,0.00018,2]
[366463196,1750267844447,-164.005556,0.00018,2]
[366463198,1750267844457,-164.005556,0.00018,2]
[366463200,1750267844466,-151.0,0.00018,2]
[366463202,1750267844476,-151.0,0.00018,2]
[366463204,1750267844485,-151.0,0.00018,2]
[366463206,1750267844496,-151.0,0.00018,2]
[366463208,1750267844505,-151.0,0.00018,2]
[366463210,1750267844515,-151.0,0.00018,2]
[366463212,1750267844526,-184.108387,0.00018,2]
[366463214,1750267844536,-184.108387,0.00018,2]
[366463216,1750267844546,-1957.856,0.00018048,2]
[366463218,1750267844555,-151.0,0.00018059,2]
[366463220,1750267844565,-7305.53533614,0.00018059,2]
[366463222,1750267844574,-600.0,0.00018082,4]
[366463224,1750267844583,-548.0,0.00018246,2]
[366463226,1750267844592,-1345.89003471,0.00018279,2]
[366463228,1750267844601,-150.0,0.00018308,2]
[366463230,1750267844610,-201.0,0.00018312,5]
[366463232,1750267844620,-2989.26202407,0.00018444,2]
[366463234,1750267844629,-150.0,0.00018494,2]
[366463236,1750267844638,-500.0,0.000185,2]
[366463238,1750267844648,-2000.0,0.00018535,2]
[366463240,1750267844657,-7305.53533614,0.00018539,2]
[366463242,1750267844666,-156.9382752,0.00018541,2]
[366463244,1750267844675,-150.0,0.00018563,2]
[366463246,1750267844687,-400.0,0.000187,6]
[366463248,1750267844696,-150.0,0.00018793,2]
[366463250,1750267844705,-900.0,0.000188,6]
[366463252,1750267844715,-1300.0,0.000189,6]
[366463254,1750267844724,-154.07206838,0.000189,2]
[366463256,1750267844733,-150.0,0.00018936,2]
[366463258,1750267844743,-1345.89003471,0.00018969,2]
[366463260,1750267844752,-2989.26202407,0.00018979,2]
[366463262,1750267844761,-64947.82559929,0.00018999,2]
[366463264,1750267844771,-12412.09700271,0.00019,14]
[366463266,1750267844780,-4024.31887249,0.00019,2]
[366463268,1750267844790,-5084.0,0.00019,2]
[366463271,1750267844800,-684.641191,0.00019011,2]
[366463272,1750267844809,-7305.53533614,0.00019018,2]
[366463274,1750267844819,-1000.0,0.00019054,2]
[366463277,1750267844838,-500.0,0.00019082,2]
[366463279,1750267844854,-151.0,0.00019156,2]
[366463280,1750267844863,-151.0,0.00019156,2]
[366463283,1750267844874,-151.0,0.00019156,2]
[366463285,1750267844883,-257.021327,0.00019159,2]
[366463287,1750267844894,-299.879646,0.00019159,2]
[366463289,1750267844903,-299.879646,0.00019159,2]
[366463291,1750267844913,-151.0,0.00019159,2]
[366463293,1750267844923,-286.310999,0.00019159,2]
[366463295,1750267844932,-286.310999,0.00019159,2]
[366463297,1750267844942,-244.047644,0.00019159,2]
[366463299,1750267844951,-151.0,0.00019178,2]
[366463301,1750267844960,-151.0,0.00019178,2]
[366463303,1750267844970,-151.0,0.00019178,2]
[366463305,1750267844980,-151.0,0.00019178,2]
[366463307,1750267844989,-151.0,0.00019178,2]
[366463309,1750267844998,-151.0,0.00019178,2]
[366463311,1750267845008,-151.0,0.00019178,2]
[366463313,1750267845018,-151.0,0.00019178,2]
[366463315,1750267845027,-151.0,0.00019178,2]
[366463317,1750267845037,-1482.198275,0.00019178,2]
[366463319,1750267845046,-1482.198275,0.00019178,2]
[366463321,1750267845056,-151.0,0.00019178,2]
[366463323,1750267845065,-151.0,0.00019178,2]
[366463325,1750267845075,-151.0,0.00019178,2]
[366463327,1750267845084,-151.0,0.00019178,2]
[366463329,1750267845094,-184.108387,0.00019178,2]
[366463331,1750267845103,-184.108387,0.00019178,2]
[366463333,1750267845113,-151.0,0.00019178,2]
[366463335,1750267845122,-211.508747,0.00019178,2]
[366463337,1750267845131,-211.508747,0.00019178,2]
[366463339,1750267845141,-211.508747,0.00019178,2]
[366463341,1750267845151,-211.508747,0.00019178,2]
[366463343,1750267845160,-267.41,0.00019178,2]
[366463345,1750267845170,-18176.98159125,0.000192,2]
[366463347,1750267845179,-150.0,0.0001921,2]
[366463349,1750267845189,-150.0,0.00019212,2]
[366463351,1750267845198,-1181.89994031,0.00019299,5]
[366463354,1750267845208,-151.0,0.00019299,2]
[366463356,1750267845218,-158.18927916,0.000193,2]
[366463358,1750267845227,-171.55203439,0.000193,2]
[366463360,1750267845237,-1000.0,0.00019326,2]
[366463362,1750267845248,-833.92080167,0.00019335,2]
[366463364,1750267845257,-156.587,0.00019362,2]
[366463366,1750267845265,-693.3919763,0.00019362,2]
[366463368,1750267845275,-215.0738,0.00019362,2]
[366463370,1750267845285,-360.0,0.0001937,2]
[366463372,1750267845295,-231.0,0.0001937,2]
[366463374,1750267845304,-425.59839425,0.0001937,2]
[366463376,1750267845314,-700.0,0.0001937,2]
[366463378,1750267845323,-151.0,0.0001937,2]
[366463380,1750267845333,-151.0,0.0001937,2]
[366463382,1750267845343,-500.0,0.00019373,2]
[366463384,1750267845352,-500.0,0.00019373,2]
[366463386,1750267845361,-521.73507938,0.00019373,2]
[366463388,1750267845371,-500.0,0.00019373,2]
[366463390,1750267845380,-500.0,0.00019373,2]
[366463392,1750267845390,-500.0,0.00019373,2]
[366463394,1750267845400,-500.0,0.00019373,2]
[366463396,1750267845410,-500.0,0.00019373,2]
[366463398,1750267845420,-500.0,0.00019373,2]
[366463400,1750267845429,-500.0,0.00019373,2]
[366463402,1750267845439,-500.0,0.00019373,2]
[366463404,1750267845448,-500.0,0.00019373,2]
[366463406,1750267845458,-500.0,0.00019373,2]
[366463408,1750267845467,-500.0,0.00019373,2]
[366463410,1750267845477,-500.0,0.00019373,2]
[366463413,1750267845487,-151.0,0.00019373,2]
[366463415,1750267845497,-151.0,0.00019373,2]
[366463417,1750267845507,-151.0,0.00019373,2]
[366463419,1750267845516,-151.0,0.00019373,2]
[366463421,1750267845526,-151.0,0.00019373,2]
[366463423,1750267845535,-154.386857,0.00019373,2]
[366463425,1750267845545,-154.386857,0.00019373,2]
[366463427,1750267845555,-151.0,0.00019373,2]
[366463429,1750267845565,-150.0,0.00019384,2]
[366463431,1750267845575,-150.0,0.00019385,2]
[366463433,1750267845585,-3724.9326824,0.00019399,5]
[366463435,1750267845594,-1000.0,0.00019399,2]
[366463437,1750267845604,-815.26906002,0.00019399,2]
[366463439,1750267845615,-666.0,0.00019399,2]
[366463441,1750267845624,-151.0,0.00019399,2]
[366463443,1750267845633,-151.0,0.00019399,2]
[366463445,1750267845643,-151.0,0.00019399,2]
[366463447,1750267845653,-151.0,0.00019399,2]
[366463449,1750267845662,-183.87,0.00019399,2]
[366463451,1750267845672,-300.0,0.00019399,2]
[366463453,1750267845681,-300.0,0.00019399,2]
[366463455,1750267845691,-211.508747,0.00019399,2]
[366463457,1750267845701,-211.508747,0.00019399,2]
[366463459,1750267845710,-151.0,0.00019399,2]
[366463461,1750267845720,-257.021327,0.00019399,2]
[366463463,1750267845729,-299.879646,0.00019399,2]
[366463465,1750267845739,-151.0,0.00019399,2]
[366463467,1750267845748,-299.879646,0.00019399,2]
[366463469,1750267845758,-151.0,0.00019399,2]
[366463471,1750267845767,-151.0,0.00019399,2]
[366463473,1750267845777,-151.0,0.00019399,2]
[366463476,1750267845787,-286.310999,0.00019399,2]
[366463477,1750267845796,-286.310999,0.00019399,2]
[366463480,1750267845806,-162.565468,0.00019399,2]
[366463482,1750267845816,-162.565468,0.00019399,2]
[366463484,1750267845826,-151.0,0.00019399,2]
[366463486,1750267845835,-1482.198275,0.00019399,2]
[366463488,1750267845849,-1482.198275,0.00019399,2]
[366463490,1750267845859,-151.0,0.00019399,2]
[366463492,1750267845869,-151.0,0.00019399,2]
[366463494,1750267845877,-151.0,0.00019399,2]
[366463496,1750267845887,-164.005556,0.00019399,2]
[366463498,1750267845897,-164.005556,0.00019399,2]
[366463500,1750267845906,-151.0,0.00019399,2]
[366463502,1750267845916,-151.0,0.00019399,2]
[366463504,1750267845925,-150.0,0.00019399,2]
[366463506,1750267845935,-150.0,0.00019399,2]
[366463508,1750267845944,-151.0,0.00019399,2]
[366463510,1750267845954,-151.0,0.00019399,2]
[366463512,1750267845964,-184.108387,0.00019399,2]
[366463514,1750267845974,-184.108387,0.00019399,2]
[366463516,1750267845984,-920197.24908019,0.000194,2]
[366463518,1750267845994,-3886.50832333,0.000194,2]
[366463520,1750267846004,-2839.25468366,0.000194,2]
[366463522,1750267846014,-2273.67522183,0.000194,2]
[366463524,1750267846023,-18240.99,0.000194,2]
[366463526,1750267846033,-1744.67943389,0.000194,2]
[366463529,1750267846043,-151.0,0.000194,2]
[366463532,1750267846053,-151.0,0.000194,2]
[366463534,1750267846063,-151.0,0.000194,2]
[366463537,1750267846072,-151.0,0.000194,2]
[366463539,1750267846082,-151.0,0.000194,2]
[366463541,1750267846092,-151.0,0.000194,2]
[366463543,1750267846101,-151.0,0.000194,2]
[366463545,1750267846111,-151.0,0.000194,2]
[366463547,1750267846121,-151.0,0.000194,2]
[366463549,1750267846130,-630445.6798871,0.000194,2]
[366463551,1750267846140,-238.140298,0.000194,2]
[366463553,1750267846150,-166.268819,0.000194,2]
[366463555,1750267846159,-151.0,0.000194,2]
[366463557,1750267846168,-151.0,0.000194,2]
[366463559,1750267846178,-151.0,0.000194,2]
[366463561,1750267846189,-151.0,0.000194,2]
[366463563,1750267846199,-151.0,0.000194,2]
[366463565,1750267846208,-151.0,0.000194,2]
[366463567,1750267846219,-151.0,0.000194,2]
[366463569,1750267846229,-151.0,0.000194,2]
[366463571,1750267846238,-162.566288,0.000194,2]
[366463573,1750267846247,-154.386857,0.000194,2]
[366463575,1750267846257,-154.386857,0.000194,2]
[366463577,1750267846266,-154.386857,0.000194,2]
[366463579,1750267846276,-154.386857,0.000194,2]
[366463581,1750267846285,-211.508747,0.000194,2]
[366463583,1750267846295,-211.508747,0.000194,2]
[366463585,1750267846304,-211.508747,0.000194,2]
[366463587,1750267846314,-211.508747,0.000194,2]
[366463589,1750267846323,-151.0,0.000194,2]
[366463590,1750267846332,-151.0,0.000194,2]
[366463592,1750267846341,-257.021327,0.000194,2]
[366463593,1750267846350,-257.021327,0.000194,2]
[366463595,1750267846361,-257.021327,0.000194,2]
[366463597,1750267846371,-257.021327,0.000194,2]
[366463599,1750267846381,-299.879646,0.000194,2]
[366463601,1750267846391,-299.879646,0.000194,2]
[366463604,1750267846400,-151.0,0.000194,2]
[366463606,1750267846411,-151.0,0.000194,2]
[366463608,1750267846421,-299.879646,0.000194,2]
[366463610,1750267846430,-151.0,0.000194,2]
[366463612,1750267846439,-151.0,0.000194,2]
[366463614,1750267846448,-299.879646,0.000194,2]
[366463616,1750267846457,-151.0,0.000194,2]
[366463618,1750267846467,-151.0,0.000194,2]
[366463620,1750267846476,-151.0,0.000194,2]
[366463622,1750267846486,-254.617106,0.000194,2]
[366463630,1750267846558,-286.310999,0.000194,2]
[366463632,1750267846568,-286.310999,0.000194,2]
[366463634,1750267846577,-286.310999,0.000194,2]
[366463636,1750267846587,-286.310999,0.000194,2]
[366463638,1750267846596,-162.565468,0.000194,2]
[366463640,1750267846606,-162.565468,0.000194,2]
[366463642,1750267846615,-162.565468,0.000194,2]
[366463644,1750267846625,-162.565468,0.000194,2]
[366463646,1750267846634,-151.0,0.000194,2]
[366463648,1750267846643,-151.0,0.000194,2]
[366463650,1750267846653,-1482.198275,0.000194,2]
[366463652,1750267846662,-1482.198275,0.000194,2]
[366463654,1750267846671,-1482.198275,0.000194,2]
[366463656,1750267846680,-1482.198275,0.000194,2]
[366463658,1750267846690,-151.0,0.000194,2]
[366463660,1750267846700,-151.0,0.000194,2]
[366463662,1750267846710,-151.0,0.000194,2]
[366463664,1750267846719,-151.0,0.000194,2]
[366463666,1750267846728,-151.0,0.000194,2]
[366463668,1750267846738,-151.0,0.000194,2]
[366463670,1750267846747,-164.005556,0.000194,2]
[366463672,1750267846756,-164.005556,0.000194,2]
[366463674,1750267846766,-164.005556,0.000194,2]
[366463676,1750267846775,-164.005556,0.000194,2]
[366463678,1750267846784,-151.0,0.000194,2]
[366463680,1750267846793,-151.0,0.000194,2]
[366463682,1750267846803,-151.0,0.000194,2]
[366463684,1750267846813,-151.0,0.000194,2]
[366463686,1750267846822,-5564.0,0.000194,3]
[366463688,1750267846831,-151.0,0.000194,2]
[366463690,1750267846846,-151.0,0.000194,2]
[366463692,1750267846856,-151.0,0.000194,2]
[366463694,1750267846865,-189.427194,0.000194,2]
[366463696,1750267846875,-184.108387,0.000194,2]
[366463697,1750267846884,-184.108387,0.000194,2]
[366463698,1750267846893,-184.108387,0.000194,2]
[366463699,1750267846902,-184.108387,0.000194,2]
[366463700,1750267846911,-300.0,0.000194,2]
[366463701,1750267846920,-300.0,0.000194,2]
[366463702,1750267846930,-211.508747,0.00019401,2]
[366463703,1750267846939,-211.508747,0.00019401,2]
[366463704,1750267846948,-151.0,0.00019401,2]
[366463705,1750267846957,-257.021327,0.00019401,2]
[366463706,1750267846966,-257.021327,0.00019401,2]
[366463707,1750267846974,-299.879646,0.00019401,2]
[366463708,1750267846983,-151.0,0.00019401,2]
[366463709,1750267846992,-283.221756,0.00019401,2]
[366463710,1750267847001,-299.879646,0.00019401,2]
[366463711,1750267847010,-151.0,0.00019401,2]
[366463712,1750267847018,-286.310999,0.00019401,2]
[366463713,1750267847027,-286.310999,0.00019401,2]
[366463714,1750267847036,-162.565468,0.00019401,2]
[366463716,1750267847045,-162.565468,0.00019401,2]
[366463718,1750267847054,-26001.4260607,0.00019401,2]
[366463720,1750267847064,-41817.8473352,0.00019401,2]
[366463722,1750267847073,-5936.9879385,0.00019401,2]
[366463724,1750267847083,-2869.8663132,0.00019414,2]
[366463726,1750267847092,-151.0,0.00019427,2]
[366463728,1750267847101,-1482.198275,0.00019427,2]
[366463730,1750267847111,-1482.198275,0.00019427,2]
[366463732,1750267847121,-151.0,0.00019427,2]
[366463734,1750267847130,-151.0,0.00019427,2]
[366463736,1750267847140,-151.0,0.00019427,2]
[366463738,1750267847149,-164.005556,0.00019427,2]
[366463740,1750267847159,-164.005556,0.00019427,2]
[366463742,1750267847168,-151.0,0.00019427,2]
[366463744,1750267847177,-151.0,0.00019427,2]
[366463746,1750267847187,-151.0,0.00019427,2]
[366463748,1750267847196,-184.108387,0.00019427,2]
[366463750,1750267847205,-184.108387,0.00019427,2]
[366463752,1750267847215,-151.0,0.0001944,2]
[366463754,1750267847225,-151.0,0.0001944,2]
[366463756,1750267847234,-180.919522,0.0001944,2]
[366463758,1750267847243,-151.0,0.0001944,2]
[366463760,1750267847252,-151.0,0.0001944,2]
[366463762,1750267847261,-151.0,0.0001944,2]
[366463764,1750267847271,-151.0,0.0001944,2]
[366463766,1750267847280,-154.386857,0.0001944,2]
[366463768,1750267847289,-154.386857,0.0001944,2]
[366463770,1750267847298,-500.0,0.00019453,2]
[366463772,1750267847308,-655.10351855,0.00019454,2]
[366463774,1750267847320,-168.0,0.00019455,2]
[366463776,1750267847330,-7305.53533614,0.00019498,2]
[366463778,1750267847340,-300.0,0.00019499,2]
[366463780,1750267847349,-300.0,0.00019499,2]
[366463782,1750267847358,-150.0,0.00019499,2]
[366463784,1750267847368,-18176.05672493,0.000195,2]
[366463786,1750267847378,-3780.0,0.000195,2]
[366463788,1750267847387,-13022.99364438,0.000195,2]
[366463790,1750267847397,-360978.2,0.000195,2]
[366463792,1750267847407,-500.0,0.00019503,2]
[366463794,1750267847417,-200.0,0.0001951,2]
[366463796,1750267847426,-2989.26202407,0.00019515,2]
[366463798,1750267847435,-150.0,0.00019518,2]
[366463800,1750267847445,-500.0,0.00019585,2]
[366463802,1750267847454,-151.0,0.000196,2]
[366463804,1750267847464,-8727.73425319,0.000196,4]
[366463806,1750267847474,-151.0,0.000196,2]
[366463808,1750267847484,-257.021327,0.000196,2]
[366463810,1750267847493,-257.021327,0.000196,2]
[366463811,1750267847502,-299.879646,0.000196,2]
[366463813,1750267847511,-151.0,0.000196,2]
[366463816,1750267847522,-299.879646,0.000196,2]
[366463817,1750267847531,-151.0,0.000196,2]
[366463820,1750267847541,-286.310999,0.000196,2]
[366463822,1750267847551,-286.310999,0.000196,2]
[366463824,1750267847560,-535.2,0.00019633,2]
[366463826,1750267847570,-150.0,0.00019654,2]
[366463828,1750267847581,-1345.89003471,0.00019659,2]
[366463830,1750267847590,-7500.0,0.000197,2]
[366463832,1750267847600,-151.0,0.000197,2]
[366463834,1750267847609,-151.0,0.000197,2]
[366463836,1750267847619,-213.723896,0.000197,2]
[366463838,1750267847628,-151.0,0.000197,2]
[366463840,1750267847638,-151.0,0.000197,2]
[366463842,1750267847648,-154.386857,0.000197,2]
[366463844,1750267847658,-154.386857,0.000197,2]
[366463846,1750267847668,-151.0,0.000197,2]
[366463848,1750267847678,-1482.198275,0.000197,2]
[366463850,1750267847688,-1482.198275,0.000197,2]
[366463852,1750267847697,-151.0,0.000197,2]
[366463854,1750267847706,-151.0,0.000197,2]
[366463856,1750267847715,-224.566808,0.000197,2]
[366463858,1750267847725,-164.005556,0.000197,2]
[366463860,1750267847735,-164.005556,0.000197,2]
[366463862,1750267847744,-151.0,0.000197,2]
[366463864,1750267847754,-151.0,0.000197,2]
[366463866,1750267847763,-151.0,0.000197,2]
[366463868,1750267847772,-184.108387,0.000197,2]
[366463869,1750267847782,-184.108387,0.000197,2]
[366463870,1750267847791,-168.0,0.00019705,2]
[366463871,1750267847801,-1001.6933,0.00019719,2]
[366463872,1750267847809,-151.0,0.00019723,2]
[366463873,1750267847818,-211.508747,0.00019723,2]
[366463874,1750267847827,-211.508747,0.00019723,2]
[366463875,1750267847836,-162.565468,0.00019723,2]
[366463876,1750267847850,-162.565468,0.00019723,2]
[366463877,1750267847859,-300.0,0.00019725,2]
[366463878,1750267847869,-300.0,0.00019725,2]
[366463880,1750267847878,-1000.0,0.00019726,2]
[366463882,1750267847888,-1000.0,0.00019726,2]
[366463884,1750267847897,-1000.0,0.00019726,2]
[366463886,1750267847907,-1000.0,0.00019726,2]
[366463888,1750267847916,-1000.0,0.00019726,2]
[366463890,1750267847926,-1000.0,0.00019726,2]
[366463892,1750267847936,-1000.0,0.00019726,2]
[366463894,1750267847945,-1000.0,0.00019726,2]
[366463896,1750267847955,-1000.0,0.00019726,2]
[366463898,1750267847964,-1000.0,0.00019726,2]
[366463900,1750267847973,-1000.0,0.00019726,2]